[Event "EYCC Open-U16 2019"]
[Site "Bratislava"]
[Date "2019.08.07"]
[Round "6.8"]
[White "Tsoi, Dmitry"]
[Black "Kacharava, Nikolozi"]
[Result "1-0"]
[ECO "A03"]
[WhiteElo "2314"]
[BlackElo "2431"]
[Annotator "NA"]
[PlyCount "75"]
[EventDate "2019.08.02"]
[EventType "swiss"]
[EventCountry "SVK"]
[SourceTitle "playchess.com"]
[Source "ChessBase"]
[SourceQuality "1"]
[TimeControl "40/5400+30:1800+30"]

1. f4 {[%emt 0:00:00]} d5 {[%emt 0:00:05]} 2. Nf3 {[%emt 0:00:00]} g6 {[%emt 0:00:30]} 3. e3 {[%emt 0:00:00]} Bg7 {[%emt 0:00:30]} 4. d4 {[%emt 0:00:00]} c5 {[%emt 0:00:56]} 5. c3 {[%emt 0:00:00]} Nf6 {[%emt 0:00:50]} 6. Bd3 {[%emt 0:00:00]} O-O {[%emt 0:00:51]} 7. O-O {[%emt 0:00:00]} b6 {[%emt 0:01:22]} 8. Qe2 {[%emt 0:00:08]} Bb7 {[%emt 0:03:27]} 9. Nbd2 {[%emt 0:00:08]} Ne4 {[%emt 0:02:10]} 10. a4 {[%emt 0:00:48]} Nd7 {[%emt 0:03:30]} 11. Ne5 {[%emt 0:00:19]} f6 {[%emt 0:12:33]} 12. Nxe4 {[%emt 0:04:01]} fxe5 {[%emt 0:06:29]} 13. Ng5 {[%emt 0:00:27]} e4 {[%emt 0:02:18]} 14. Bb5 {[%emt 0:03:43]} Rf6 {[%emt 0:01:28]} 15. a5 {[%emt 0:00:10]} bxa5 {[%emt 0:05:35]} 16. h4 {[%emt 0:17:08]} Bc6 {[%emt 0:05:21]} 17. h5 {[%emt 0:01:06]} Bxb5 {[%emt 0:03:27]} 18. Qxb5 {[%emt 0:00:08]} Rb8 {[%emt 0:01:21]} 19. Qxa5 {[%emt 0:04:41]} Qxa5 {[%emt 0:03:16]} 20. Rxa5 {[%emt 0:00:01]} Rb7 {[%emt 0:02:09]} 21. hxg6 {[%emt 0:00:48]} Rxg6 {[%emt 0:06:01]} 22. Rd1 {[%emt 0:10:54]} e6 {[%emt 0:16:56]} 23. dxc5 {[%emt 0:11:48]} Rc7 {[%emt 0:00:53]} 24. b4 {[%emt 0:01:36]} Bxc3 {[%emt 0:00:44]} 25. Bd2 {[%emt 0:00:14]} Bxd2 {[%emt 0:02:29]} 26. Rxd2 {[%emt 0:00:06]} Nb8 {[%emt 0:00:22]} 27. b5 {[%emt 0:03:16]} Nd7 {[%emt 0:03:45]} 28. Ra6 {[%emt 0:05:44]} Rxc5 {[%emt 0:04:14]} 29. Rxa7 {[%emt 0:00:37]} Nb6 {[%emt 0:01:07]} 30. Rb7 {[%emt 0:02:29]} Rxb5 {[%emt 0:02:42]} 31. Rc2 {[%emt 0:02:07]} Rb1+ {[%emt 0:03:18]} 32. Kh2 {[%emt 0:02:57]} Rh6+ {[%emt 0:01:48]} 33. Kg3 {[%emt 0:00:15]} Rf6 {[%emt 0:00:36]} 34. Rcc7 {[%emt 0:03:50]} h6 {[%emt 0:01:10]} 35. Nh7 {[%emt 0:00:41]} Rg6+ {[%emt 0:01:07]} 36. Kh2 {[%emt 0:00:06]} Kh8 {[%emt 0:01:16]} 37. Rb8+ {[%emt 0:00:13]} Rg8 {[%emt 0:00:05]} 38. Nf6 {[%emt 0:00:04]} 1-0

[Event "EYCC Open-U16 2019"]
[Site "Bratislava"]
[Date "2019.08.07"]
[Round "6.9"]
[White "Mis, Mieszko"]
[Black "Horvath, Dominik"]
[Result "1/2-1/2"]
[ECO "D31"]
[WhiteElo "2284"]
[BlackElo "2424"]
[Annotator "NA"]
[PlyCount "48"]
[EventDate "2019.08.02"]
[EventType "swiss"]
[EventCountry "SVK"]
[SourceTitle "playchess.com"]
[Source "ChessBase"]
[SourceQuality "1"]
[TimeControl "40/5400+30:1800+30"]

1. d4 {[%emt 0:00:00]} d5 {[%emt 0:00:00]} 2. c4 {[%emt 0:00:00]} e6 {[%emt 0:00:00]} 3. Nc3 {[%emt 0:00:33]} a6 {[%emt 0:00:00]} 4. cxd5 {[%emt 0:00:57]} exd5 {[%emt 0:00:00]} 5. Nf3 {[%emt 0:00:04]} h6 {[%emt 0:01:34]} 6. Bf4 {[%emt 0:05:50]} Nf6 {[%emt 0:00:40]} 7. e3 {[%emt 0:03:48]} c5 {[%emt 0:01:36]} 8. dxc5 {[%emt 0:07:36]} Bxc5 {[%emt 0:00:28]} 9. Be2 {[%emt 0:01:47]} Nc6 {[%emt 0:00:29]} 10. O-O {[%emt 0:01:28]} O-O {[%emt 0:02:27]} 11. Rc1 {[%emt 0:04:36]} Ba7 {[%emt 0:04:59]} 12. Ne5 {[%emt 0:04:30]} Re8 {[%emt 0:13:42]} 13. Nxc6 {[%emt 0:01:27]} bxc6 {[%emt 0:00:04]} 14. Qa4 {[%emt 0:04:21]} Bd7 {[%emt 0:01:57]} 15. Qb3 {[%emt 0:12:17]} Bb8 {[%emt 0:09:51]} 16. Bxb8 {[%emt 0:02:59]} Rxb8 {[%emt 0:00:23]} 17. Qa3 {[%emt 0:02:51]} a5 {[%emt 0:14:05]} 18. Rfe1 {[%emt 0:10:41]} Rb4 {[%emt 0:05:06]} 19. Na4 {[%emt 0:01:47]} Ng4 {[%emt 0:06:15]} 20. Nc5 {[%emt 0:05:42]} Qf6 {[%emt 0:02:49]} 21. Bxg4 {[%emt 0:05:15]} Bxg4 {[%emt 0:00:11]} 22. Nd3 {[%emt 0:00:45]} Rb5 {[%emt 0:11:30]} 23. Qc3 {[%emt 0:02:40]} Qxc3 {[%emt 0:01:55]} 24. Rxc3 {[%emt 0:00:05]} Bf5 {[%emt 0:00:08]} 1/2-1/2

[Event "EYCC Open-U16 2019"]
[Site "Bratislava"]
[Date "2019.08.07"]
[Round "6.10"]
[White "Subelj, Jan"]
[Black "Risteski, Emil"]
[Result "1/2-1/2"]
[ECO "B20"]
[WhiteElo "2425"]
[BlackElo "2150"]
[Annotator "NA"]
[PlyCount "46"]
[EventDate "2019.08.02"]
[EventType "swiss"]
[EventCountry "SVK"]
[SourceTitle "playchess.com"]
[Source "ChessBase"]
[SourceQuality "1"]
[TimeControl "40/5400+30:1800+30"]

1. e4 {[%emt 0:00:00]} c5 {[%emt 0:00:00]} 2. g3 {[%emt 0:01:22]} d5 {[%emt 0:01:09]} 3. exd5 {[%emt 0:00:54]} Qxd5 {[%emt 0:00:06]} 4. Nf3 {[%emt 0:00:42]} Bg4 {[%emt 0:00:22]} 5. Be2 {[%emt 0:01:09]} Nc6 {[%emt 0:02:20]} 6. h3 {[%emt 0:00:13]} Bh5 {[%emt 0:02:26]} 7. Nc3 {[%emt 0:04:33]} Qd7 {[%emt 0:03:06]} 8. d3 {[%emt 0:16:49]} Nf6 {[%emt 0:08:02]} 9. Be3 {[%emt 0:12:40]} e6 {[%emt 0:08:20]} 10. g4 {[%emt 0:02:01]} Bg6 {[%emt 0:00:10]} 11. Nh4 {[%emt 0:00:16]} Nd5 {[%emt 0:10:06]} 12. Nxd5 {[%emt 0:09:06]} exd5 {[%emt 0:01:16]} 13. Nxg6 {[%emt 0:02:37]} hxg6 {[%emt 0:00:21]} 14. d4 {[%emt 0:03:27]} c4 {[%emt 0:07:59]} 15. b3 {[%emt 0:05:31]} Bb4+ {[%emt 0:06:43]} 16. Kf1 {[%emt 0:00:15]} Bc3 {[%emt 0:01:29]} 17. Rb1 {[%emt 0:04:00]} b5 {[%emt 0:03:04]} 18. Bf3 {[%emt 0:03:36]} O-O {[%emt 0:01:00]} 19. bxc4 {[%emt 0:01:05]} bxc4 {[%emt 0:00:04]} 20. Rb5 {[%emt 0:01:52]} Ne7 {[%emt 0:02:54]} 21. Qb1 {[%emt 0:00:06]} Qd6 {[%emt 0:01:31]} 22. Rb7 {[%emt 0:10:48]} Rab8 {[%emt 0:01:34]} 23. Qb5 {[%emt 0:03:16]} Rxb7 {[%emt 0:05:19]} 1/2-1/2

[Event "EYCC Open-U16 2019"]
[Site "Bratislava"]
[Date "2019.08.07"]
[Round "6.11"]
[White "Mukhutdinov, Tigran"]
[Black "Remizov, Yaroslav"]
[Result "1/2-1/2"]
[ECO "A06"]
[WhiteElo "2328"]
[BlackElo "2357"]
[Annotator "NA"]
[PlyCount "50"]
[EventDate "2019.08.02"]
[EventType "swiss"]
[EventCountry "SVK"]
[SourceTitle "playchess.com"]
[Source "ChessBase"]
[SourceQuality "1"]
[TimeControl "40/5400+30:1800+30"]

1. Nf3 {[%emt 0:00:00]} d5 {[%emt 0:00:00]} 2. g3 {[%emt 0:00:00]} Bg4 {[%emt 0:00:11]} 3. Bg2 {[%emt 0:00:09]} Nd7 {[%emt 0:00:08]} 4. c4 {[%emt 0:00:42]} e6 {[%emt 0:00:54]} 5. Qb3 {[%emt 0:00:39]} Nc5 {[%emt 0:00:35]} 6. Qe3 {[%emt 0:00:06]} c6 {[%emt 0:00:55]} 7. d4 {[%emt 0:00:28]} Nd7 {[%emt 0:01:00]} 8. O-O {[%emt 0:00:25]} Ngf6 {[%emt 0:01:00]} 9. h3 {[%emt 0:00:21]} Bh5 {[%emt 0:02:12]} 10. cxd5 {[%emt 0:02:03]} cxd5 {[%emt 0:01:20]} 11. Qb3 {[%emt 0:01:11]} Qb6 {[%emt 0:08:04]} 12. Bf4 {[%emt 0:02:13]} Qxb3 {[%emt 0:06:23]} 13. axb3 {[%emt 0:00:06]} Ne4 {[%emt 0:00:19]} 14. Nc3 {[%emt 0:05:10]} Bd6 {[%emt 0:21:20]} 15. Bxd6 {[%emt 0:11:15]} Nxd6 {[%emt 0:00:03]} 16. g4 {[%emt 0:00:14]} Bg6 {[%emt 0:00:05]} 17. Ne5 {[%emt 0:00:47]} Bc2 {[%emt 0:13:34]} 18. Ra3 {[%emt 0:07:13]} f6 {[%emt 0:00:12]} 19. Nxd7 {[%emt 0:00:30]} Kxd7 {[%emt 0:00:04]} 20. Rc1 {[%emt 0:00:49]} Bg6 {[%emt 0:02:01]} 21. Rca1 {[%emt 0:00:35]} a6 {[%emt 0:01:03]} 22. Rc1 {[%emt 0:09:16]} Nb5 {[%emt 0:24:04]} 23. Nxb5 {[%emt 0:01:36]} axb5 {[%emt 0:00:27]} 24. b4 {[%emt 0:02:45]} Rhc8 {[%emt 0:02:46]} 25. Rc5 {[%emt 0:15:01]} b6 {[%emt 0:01:41]} 1/2-1/2

[Event "EYCC Open-U16 2019"]
[Site "Bratislava"]
[Date "2019.08.07"]
[Round "6.12"]
[White "Veiga, Jose Francisco R P N"]
[Black "Ceres, Dragos"]
[Result "1-0"]
[ECO "C78"]
[WhiteElo "2357"]
[BlackElo "2266"]
[Annotator "NA"]
[PlyCount "67"]
[EventDate "2019.08.02"]
[EventType "swiss"]
[EventCountry "SVK"]
[SourceTitle "playchess.com"]
[Source "ChessBase"]
[SourceQuality "1"]
[TimeControl "40/5400+30:1800+30"]

1. e4 {[%emt 0:00:00]} e5 {[%emt 0:00:00]} 2. Nf3 {[%emt 0:00:13]} Nc6 {[%emt 0:00:00]} 3. Bb5 {[%emt 0:00:06]} a6 {[%emt 0:00:00]} 4. Ba4 {[%emt 0:00:07]} Nf6 {[%emt 0:00:00]} 5. O-O {[%emt 0:00:40]} b5 {[%emt 0:00:02]} 6. Bb3 {[%emt 0:00:09]} Bc5 {[%emt 0:00:04]} 7. c3 {[%emt 0:00:31]} d6 {[%emt 0:00:03]} 8. a4 {[%emt 0:00:08]} Rb8 {[%emt 0:00:13]} 9. d4 {[%emt 0:00:48]} Bb6 {[%emt 0:00:00]} 10. a5 {[%emt 0:00:54]} Ba7 {[%emt 0:00:19]} 11. h3 {[%emt 0:00:16]} O-O 12. Be3 {[%emt 0:01:00]} exd4 {[%emt 0:14:53]} 13. cxd4 Nxe4 {[%emt 0:06:36]} 14. Qc2 {[%emt 0:04:19]} Qe8 {[%emt 0:01:41]} 15. Nc3 {[%emt 0:00:23]} Bf5 {[%emt 0:15:25]} 16. Nh4 {[%emt 0:16:49]} Nb4 {[%emt 0:20:24]} 17. Qd1 {[%emt 0:04:26]} Bc8 {[%emt 0:09:27]} 18. Re1 {[%emt 0:02:36]} Qe7 {[%emt 0:14:56]} 19. Nf3 {[%emt 0:02:23]} Nf6 {[%emt 0:00:39]} 20. Bg5 {[%emt 0:01:23]} Qd8 {[%emt 0:00:29]} 21. Ne4 {[%emt 0:00:50]} Bf5 {[%emt 0:00:05]} 22. Nxf6+ {[%emt 0:01:42]} gxf6 {[%emt 0:00:06]} 23. Bh6 {[%emt 0:00:12]} Re8 {[%emt 0:00:56]} 24. Rxe8+ {[%emt 0:03:04]} Qxe8 {[%emt 0:00:06]} 25. Qd2 {[%emt 0:00:25]} Nc6 {[%emt 0:01:33]} 26. Re1 {[%emt 0:01:43]} Qd8 {[%emt 0:01:11]} 27. Qf4 {[%emt 0:02:37]} Bg6 {[%emt 0:00:22]} 28. Bd5 {[%emt 0:01:07]} Ne7 {[%emt 0:01:21]} 29. Qxf6 {[%emt 0:00:16]} Nf5 {[%emt 0:00:00]} 30. Bxf7+ {[%emt 0:00:00]} Bxf7 {[%emt 0:00:57]} 31. Qxf5 {[%emt 0:00:36]} Bg6 {[%emt 0:00:04]} 32. Qe6+ {[%emt 0:00:34]} Bf7 {[%emt 0:00:04]} 33. Qg4+ {[%emt 0:00:52]} Bg6 34. Re6 1-0

[Event "EYCC Open-U16 2019"]
[Site "Bratislava"]
[Date "2019.08.07"]
[Round "6.13"]
[White "Cohen Revivo, Shoham"]
[Black "Boyer, Mahel"]
[Result "1-0"]
[ECO "B00"]
[WhiteElo "2254"]
[BlackElo "2295"]
[Annotator "NA"]
[PlyCount "59"]
[EventDate "2019.08.02"]
[EventType "swiss"]
[EventCountry "SVK"]
[SourceTitle "playchess.com"]
[Source "ChessBase"]
[SourceQuality "1"]
[TimeControl "40/5400+30:1800+30"]

1. e4 {[%emt 0:00:00]} Nc6 {[%emt 0:00:00]} 2. d4 {[%emt 0:00:00]} d5 {[%emt 0:00:00]} 3. exd5 {[%emt 0:00:23]} Qxd5 {[%emt 0:00:00]} 4. Nf3 {[%emt 0:00:08]} e5 {[%emt 0:00:00]} 5. Nc3 {[%emt 0:00:05]} Bb4 {[%emt 0:00:00]} 6. Bd2 {[%emt 0:00:04]} Bxc3 {[%emt 0:00:00]} 7. Bxc3 {[%emt 0:00:07]} e4 {[%emt 0:00:00]} 8. Ne5 {[%emt 0:00:07]} Nxe5 {[%emt 0:00:02]} 9. dxe5 {[%emt 0:00:06]} Ne7 {[%emt 0:00:01]} 10. Be2 {[%emt 0:09:22]} Be6 {[%emt 0:02:41]} 11. O-O {[%emt 0:00:13]} O-O-O {[%emt 0:00:19]} 12. Qc1 {[%emt 0:02:14]} Qc5 {[%emt 0:13:54]} 13. Re1 {[%emt 0:06:24]} Ng6 {[%emt 0:12:51]} 14. Bf1 {[%emt 0:03:39]} Bd5 {[%emt 0:00:11]} 15. Qg5 {[%emt 0:02:49]} Bc6 {[%emt 0:01:49]} 16. Qg3 {[%emt 0:11:11]} Rde8 {[%emt 0:08:00]} 17. b4 {[%emt 0:00:25]} Qe7 {[%emt 0:00:12]} 18. b5 {[%emt 0:05:31]} Bd5 {[%emt 0:00:10]} 19. Qe3 {[%emt 0:01:17]} Kb8 {[%emt 0:00:35]} 20. Bd4 {[%emt 0:01:19]} b6 {[%emt 0:00:34]} 21. c4 {[%emt 0:00:37]} Ba8 {[%emt 0:03:03]} 22. c5 {[%emt 0:04:04]} Nxe5 {[%emt 0:00:11]} 23. c6 {[%emt 0:01:11]} f5 {[%emt 0:01:58]} 24. h3 {[%emt 0:03:20]} Ng6 {[%emt 0:23:13]} 25. a4 {[%emt 0:02:06]} f4 {[%emt 0:00:53]} 26. Qc3 {[%emt 0:00:37]} Nh4 {[%emt 0:07:05]} 27. a5 {[%emt 0:01:34]} Nf5 {[%emt 0:00:10]} 28. axb6 {[%emt 0:00:29]} cxb6 {[%emt 0:00:00]} 29. Bxb6 {[%emt 0:01:06]} axb6 {[%emt 0:04:39]} 30. c7+ {[%emt 0:00:10]} 1-0

[Event "EYCC Open-U16 2019"]
[Site "Bratislava"]
[Date "2019.08.07"]
[Round "6.14"]
[White "Stefansson, Vignir Vatnar"]
[Black "Vorisek, Jakub"]
[Result "1-0"]
[ECO "D30"]
[WhiteElo "2293"]
[BlackElo "2071"]
[Annotator "NA"]
[PlyCount "147"]
[EventDate "2019.08.02"]
[EventType "swiss"]
[EventCountry "SVK"]
[SourceTitle "playchess.com"]
[Source "ChessBase"]
[SourceQuality "1"]
[TimeControl "40/5400+30:1800+30"]

1. d4 {[%emt 0:00:00]} d5 {[%emt 0:00:00]} 2. c4 {[%emt 0:00:00]} e6 {[%emt 0:00:24]} 3. Nf3 {[%emt 0:01:12]} c5 {[%emt 0:00:49]} 4. e3 {[%emt 0:00:35]} Nf6 {[%emt 0:00:50]} 5. a3 {[%emt 0:00:08]} a6 {[%emt 0:04:25]} 6. dxc5 {[%emt 0:00:39]} Bxc5 {[%emt 0:00:37]} 7. b4 {[%emt 0:00:04]} Bd6 {[%emt 0:02:07]} 8. Bb2 {[%emt 0:03:38]} O-O {[%emt 0:06:06]} 9. Nbd2 {[%emt 0:00:09]} Nc6 {[%emt 0:05:11]} 10. Be2 {[%emt 0:05:50]} Bc7 {[%emt 0:11:21]} 11. Rc1 {[%emt 0:03:18]} dxc4 {[%emt 0:20:24]} 12. Nxc4 {[%emt 0:01:28]} b5 {[%emt 0:08:46]} 13. Qxd8 {[%emt 0:03:00]} Rxd8 {[%emt 0:05:19]} 14. Ncd2 {[%emt 0:13:15]} Bd7 {[%emt 0:11:22]} 15. Bxf6 {[%emt 0:01:51]} gxf6 {[%emt 0:00:07]} 16. Ne4 {[%emt 0:00:47]} Kg7 {[%emt 0:03:32]} 17. Nc5 {[%emt 0:12:12]} Be8 {[%emt 0:00:24]} 18. Nd2 {[%emt 0:04:24]} a5 {[%emt 0:01:04]} 19. Bxb5 {[%emt 0:03:33]} axb4 {[%emt 0:00:09]} 20. Ncb3 {[%emt 0:06:21]} Ne5 {[%emt 0:02:19]} 21. Bxe8 {[%emt 0:00:16]} Nd3+ {[%emt 0:00:36]} 22. Ke2 {[%emt 0:00:05]} Nxc1+ {[%emt 0:01:06]} 23. Rxc1 {[%emt 0:00:01]} Rxe8 {[%emt 0:00:12]} 24. Rxc7 {[%emt 0:00:04]} bxa3 {[%emt 0:00:12]} 25. Rc1 {[%emt 0:00:10]} Rec8 {[%emt 0:05:07]} 26. Ra1 {[%emt 0:03:38]} Rc2 {[%emt 0:01:57]} 27. Nd4 {[%emt 0:05:04]} Rb2 {[%emt 0:01:45]} 28. Kd1 {[%emt 0:01:15]} e5 {[%emt 0:02:33]} 29. Nc2 {[%emt 0:01:25]} a2 {[%emt 0:01:30]} 30. Kc1 {[%emt 0:01:15]} Rab8 {[%emt 0:01:13]} 31. e4 {[%emt 0:04:41]} Kg6 {[%emt 0:01:16]} 32. Ne3 {[%emt 0:01:07]} h5 {[%emt 0:01:19]} 33. Nec4 {[%emt 0:01:13]} R2b4 {[%emt 0:00:18]} 34. Rxa2 {[%emt 0:00:16]} Rc8 {[%emt 0:00:42]} 35. Rc2 {[%emt 0:00:05]} Rc5 {[%emt 0:00:49]} 36. Ne3 {[%emt 0:00:57]} Rxc2+ {[%emt 0:01:01]} 37. Kxc2 {[%emt 0:00:03]} Ra4 {[%emt 0:00:19]} 38. h4 {[%emt 0:00:40]} Ra2+ {[%emt 0:00:29]} 39. Kd3 {[%emt 0:00:06]} Ra4 {[%emt 0:00:20]} 40. Nf5 {[%emt 0:00:00]} Ra3+ {[%emt 0:00:00]} 41. Ke2 {[%emt 0:00:29]} Ra2 {[%emt 0:00:36]} 42. g3 {[%emt 0:00:55]} Rb2 {[%emt 0:00:21]} 43. Ke3 {[%emt 0:00:06]} Rc2 {[%emt 0:01:31]} 44. Ne7+ {[%emt 0:00:06]} Kg7 {[%emt 0:00:24]} 45. f3 {[%emt 0:00:13]} Rc3+ {[%emt 0:00:38]} 46. Ke2 {[%emt 0:00:06]} Ra3 {[%emt 0:00:19]} 47. Nc4 {[%emt 0:00:43]} Ra2+ {[%emt 0:03:00]} 48. Ke3 {[%emt 0:00:06]} Ra4 {[%emt 0:00:52]} 49. Kd3 {[%emt 0:00:49]} Ra2 {[%emt 0:00:19]} 50. g4 {[%emt 0:02:40]} Rh2 {[%emt 0:08:50]} 51. Nd6 {[%emt 0:01:27]} hxg4 {[%emt 0:01:19]} 52. fxg4 {[%emt 0:00:27]} Rg2 {[%emt 0:00:46]} 53. Nef5+ {[%emt 0:00:11]} Kg6 {[%emt 0:02:43]} 54. h5+ {[%emt 0:00:42]} Kh7 {[%emt 0:00:27]} 55. Ne8 {[%emt 0:00:34]} Kh8 {[%emt 0:00:19]} 56. Ne3 {[%emt 0:01:01]} Rf2 {[%emt 0:02:17]} 57. Nd6 {[%emt 0:00:07]} Kg7 {[%emt 0:01:04]} 58. Ndf5+ {[%emt 0:00:09]} Kh8 {[%emt 0:00:32]} 59. Kc4 {[%emt 0:00:39]} Rd2 {[%emt 0:00:34]} 60. Kc5 {[%emt 0:01:37]} Kg8 {[%emt 0:01:33]} 61. Nd5 {[%emt 0:00:39]} Kh8 {[%emt 0:00:15]} 62. Kd6 {[%emt 0:00:18]} Re2 {[%emt 0:00:09]} 63. Nxf6 {[%emt 0:00:39]} Rd2+ {[%emt 0:01:29]} 64. Kxe5 {[%emt 0:00:48]} Ra2 {[%emt 0:00:41]} 65. Nd5 {[%emt 0:00:11]} Re2 {[%emt 0:00:14]} 66. g5 {[%emt 0:00:24]} Rg2 {[%emt 0:00:12]} 67. Kf6 {[%emt 0:00:08]} Rh2 {[%emt 0:00:48]} 68. h6 {[%emt 0:00:24]} Re2 {[%emt 0:00:33]} 69. e5 {[%emt 0:00:31]} Rg2 {[%emt 0:00:12]} 70. Nde3 {[%emt 0:00:16]} Rg1 {[%emt 0:00:15]} 71. Nd6 {[%emt 0:00:08]} Rg3 {[%emt 0:00:44]} 72. Nxf7+ {[%emt 0:00:08]} Kg8 {[%emt 0:01:01]} 73. g6 {[%emt 0:00:12]} Rf3+ {[%emt 0:00:16]} 74. Nf5 {[%emt 0:00:08]} 1-0

[Event "EYCC Open-U16 2019"]
[Site "Bratislava"]
[Date "2019.08.07"]
[Round "6.15"]
[White "Briem, Stephan"]
[Black "Olsen, Filip Boe"]
[Result "1/2-1/2"]
[ECO "D70"]
[WhiteElo "2223"]
[BlackElo "2383"]
[Annotator "NA"]
[PlyCount "81"]
[EventDate "2019.08.02"]
[EventType "swiss"]
[EventCountry "SVK"]
[SourceTitle "playchess.com"]
[Source "ChessBase"]
[SourceQuality "1"]
[TimeControl "40/5400+30:1800+30"]

1. d4 {[%emt 0:00:00]} Nf6 {[%emt 0:00:00]} 2. c4 {[%emt 0:00:00]} g6 {[%emt 0:00:00]} 3. Nf3 {[%emt 0:00:56]} Bg7 {[%emt 0:00:08]} 4. e3 {[%emt 0:00:56]} O-O {[%emt 0:00:50]} 5. Be2 {[%emt 0:00:24]} d5 {[%emt 0:01:53]} 6. cxd5 {[%emt 0:00:35]} Nxd5 {[%emt 0:00:28]} 7. e4 {[%emt 0:00:50]} Nb6 {[%emt 0:01:18]} 8. O-O {[%emt 0:00:52]} Bg4 {[%emt 0:03:24]} 9. Nbd2 {[%emt 0:00:32]} c5 {[%emt 0:22:30]} 10. dxc5 {[%emt 0:09:28]} N6d7 {[%emt 0:01:17]} 11. Nb3 {[%emt 0:14:37]} a5 {[%emt 0:03:32]} 12. a4 {[%emt 0:09:26]} Na6 {[%emt 0:05:00]} 13. Nfd4 {[%emt 0:08:42]} Bxe2 {[%emt 0:00:53]} 14. Qxe2 {[%emt 0:00:51]} Ndxc5 {[%emt 0:01:19]} 15. Rd1 {[%emt 0:04:16]} Nxb3 {[%emt 0:07:20]} 16. Nxb3 {[%emt 0:00:48]} Qb6 {[%emt 0:00:21]} 17. Qb5 {[%emt 0:08:12]} Qxb5 {[%emt 0:06:32]} 18. axb5 {[%emt 0:00:14]} Nb4 {[%emt 0:02:27]} 19. Rxa5 {[%emt 0:06:31]} Rad8 {[%emt 0:00:58]} 20. Rxd8 {[%emt 0:01:39]} Rxd8 {[%emt 0:00:02]} 21. Kf1 {[%emt 0:00:47]} Nd3 {[%emt 0:04:34]} 22. Be3 {[%emt 0:03:17]} Nxb2 {[%emt 0:06:31]} 23. Ra7 {[%emt 0:01:28]} Nc4 {[%emt 0:01:47]} 24. Rxb7 {[%emt 0:01:19]} Nd6 {[%emt 0:00:27]} 25. Rb6 {[%emt 0:09:13]} Nxe4 {[%emt 0:01:01]} 26. Rc6 {[%emt 0:00:35]} Nc3 {[%emt 0:00:45]} 27. Bd4 {[%emt 0:08:15]} Nxb5 {[%emt 0:00:47]} 28. Bxg7 {[%emt 0:00:07]} Kxg7 {[%emt 0:00:05]} 29. g3 {[%emt 0:00:32]} g5 {[%emt 0:01:36]} 30. Rc5 {[%emt 0:01:04]} Rd1+ {[%emt 0:01:20]} 31. Kg2 {[%emt 0:02:20]} Nd6 {[%emt 0:00:39]} 32. Rxg5+ {[%emt 0:00:35]} Kf6 {[%emt 0:00:46]} 33. Ra5 {[%emt 0:03:06]} Rb1 {[%emt 0:01:04]} 34. Nc5 {[%emt 0:01:14]} Rb2 {[%emt 0:00:30]} 35. Ra6 {[%emt 0:01:57]} Kg7 {[%emt 0:00:17]} 36. Ra4 {[%emt 0:00:50]} Rc2 {[%emt 0:01:16]} 37. Ne4 {[%emt 0:00:32]} Nxe4 {[%emt 0:00:26]} 38. Rxe4 {[%emt 0:00:07]} e6 {[%emt 0:00:05]} 39. Ra4 {[%emt 0:00:36]} Rb2 {[%emt 0:00:06]} 40. h4 {[%emt 0:00:00]} Rc2 {[%emt 0:00:00]} 41. Rb4 {[%emt 0:00:22]} 1/2-1/2